[Event "*** Titled Tuesday Blitz"]
[Site "Chess.com"]
[Date "2018.04.03"]
[Round "9"]
[White "GMMatamoros"]
[Black "Zhuu96"]
[Result "1-0"]
[WhiteElo "2481"]
[BlackElo "2713"]
[TimeControl "180+2"]
[EndTime "14:57:47 PDT"]
[Termination "GMMatamoros won by checkmate"]

1. c4 {[%clk 0:03:01.9]} 1... g6 {[%clk 0:02:59.8]} 2. g3 {[%clk 0:03:02.5]}
2... Bg7 {[%clk 0:03:00.6]} 3. Bg2 {[%clk 0:03:04]} 3... e5 {[%clk 0:02:59.6]}
4. Nc3 {[%clk 0:03:05]} 4... Nc6 {[%clk 0:02:58.5]} 5. e4 {[%clk 0:03:05.7]}
5... h5 {[%clk 0:02:57.4]} 6. h4 {[%clk 0:03:06.3]} 6... d6 {[%clk 0:02:56.2]}
7. Nge2 {[%clk 0:03:07.3]} 7... Be6 {[%clk 0:02:56.5]} 8. d3 {[%clk 0:03:06]}
8... Nh6 {[%clk 0:02:56.6]} 9. Nd5 {[%clk 0:03:02.8]} 9... Qd7 {[%clk
0:02:55.9]} 10. Bg5 {[%clk 0:03:01.3]} 10... Ng8 {[%clk 0:02:54.4]} 11. Qd2
{[%clk 0:03:00.3]} 11... f6 {[%clk 0:02:55.3]} 12. Be3 {[%clk 0:03:00.7]} 12...
Nge7 {[%clk 0:02:52]} 13. d4 {[%clk 0:02:58.3]} 13... O-O {[%clk 0:02:49.1]} 14.
Nxe7+ {[%clk 0:02:25.2]} 14... Nxe7 {[%clk 0:02:48.8]} 15. d5 {[%clk 0:02:25.9]}
15... Bf7 {[%clk 0:02:48]} 16. Bh3 {[%clk 0:02:26.9]} 16... f5 {[%clk
0:02:48.8]} 17. Bg5 {[%clk 0:02:19.2]} 17... Kh8 {[%clk 0:02:49.4]} 18. Nc3
{[%clk 0:02:01.1]} 18... Ng8 {[%clk 0:02:47.9]} 19. O-O {[%clk 0:01:55.4]} 19...
Rae8 {[%clk 0:02:47.2]} 20. f4 {[%clk 0:01:53.7]} 20... exf4 {[%clk 0:02:48.2]}
21. Rxf4 {[%clk 0:01:44]} 21... Nh6 {[%clk 0:02:48.7]} 22. Raf1 {[%clk
0:01:37.8]} 22... Bg8 {[%clk 0:02:49.9]} 23. exf5 {[%clk 0:01:31.2]} 23... Nxf5
{[%clk 0:02:48.3]} 24. Qd3 {[%clk 0:00:58.6]} 24... Bh7 {[%clk 0:02:43.2]} 25.
Nb5 {[%clk 0:00:44.2]} 25... Bxb2 {[%clk 0:02:22.4]} 26. Nd4 {[%clk 0:00:40.1]}
26... Bxd4+ {[%clk 0:02:21.8]} 27. Rxd4 {[%clk 0:00:39.5]} 27... Re5 {[%clk
0:02:17.3]} 28. Rdf4 {[%clk 0:00:33.2]} 28... Qe8 {[%clk 0:02:16.6]} 29. Bxf5
{[%clk 0:00:32.2]} 29... gxf5 {[%clk 0:02:17.1]} 30. Qd4 {[%clk 0:00:33.2]}
30... b6 {[%clk 0:02:17]} 31. R4f3 {[%clk 0:00:31.1]} 31... Kg8 {[%clk
0:02:17.4]} 32. Ra3 {[%clk 0:00:28.3]} 32... a5 {[%clk 0:02:17.6]} 33. Raf3
{[%clk 0:00:28.7]} 33... Re4 {[%clk 0:02:18.8]} 34. Qc3 {[%clk 0:00:29.5]} 34...
Qa4 {[%clk 0:02:17.8]} 35. Rf4 {[%clk 0:00:25.6]} 35... Qe8 {[%clk 0:02:16.3]}
36. Bh6 {[%clk 0:00:25.1]} 36... Rf7 {[%clk 0:02:16.9]} 37. Rxe4 {[%clk
0:00:23]} 37... fxe4 {[%clk 0:02:18]} 38. Rxf7 {[%clk 0:00:22.8]} 38... Qxf7
{[%clk 0:02:19.2]} 39. Qe3 {[%clk 0:00:23.4]} 39... Bf5 {[%clk 0:02:15]} 40.
Qg5+ {[%clk 0:00:22.4]} 40... Kh7 {[%clk 0:02:16]} 41. Qf4 {[%clk 0:00:20.4]}
41... Qf6 {[%clk 0:02:17]} 42. Bg5 {[%clk 0:00:21.1]} 42... Qa1+ {[%clk
0:02:18.1]} 43. Qc1 {[%clk 0:00:18]} 43... Qd4+ {[%clk 0:02:18.7]} 44. Be3
{[%clk 0:00:18.8]} 44... Qd3 {[%clk 0:02:19.4]} 45. Qe1 {[%clk 0:00:18.7]} 45...
Bh3 {[%clk 0:02:20]} 46. Qf2 {[%clk 0:00:19.6]} 46... Kg8 {[%clk 0:02:20.7]} 47.
Kh2 {[%clk 0:00:20.4]} 47... Bf1 {[%clk 0:02:19]} 48. Bh6 {[%clk 0:00:20.7]}
48... Qxc4 {[%clk 0:02:18.6]} 49. Qf8+ {[%clk 0:00:21.3]} 49... Kh7 {[%clk
0:02:17.9]} 50. Qg7# {[%clk 0:00:23.2]} 1-0

[Event "*** Titled Tuesday Blitz"]
[Site "Chess.com"]
[Date "2018.04.03"]
[Round "9"]
[White "RandomOracle"]
[Black "Bauxi435"]
[Result "1-0"]
[WhiteElo "2149"]
[BlackElo "2400"]
[TimeControl "180+2"]
[EndTime "14:58:06 PDT"]
[Termination "RandomOracle won on time"]

1. d4 {[%clk 0:03:00.4]} 1... Nf6 {[%clk 0:03:00.6]} 2. c4 {[%clk 0:03:00.4]}
2... e6 {[%clk 0:03:01.9]} 3. g3 {[%clk 0:03:01.1]} 3... d5 {[%clk 0:03:03.8]}
4. Nf3 {[%clk 0:03:00.5]} 4... dxc4 {[%clk 0:03:05.1]} 5. Bg2 {[%clk 0:03:01.3]}
5... Bd7 {[%clk 0:03:06.5]} 6. Ne5 {[%clk 0:02:52.1]} 6... Bc6 {[%clk
0:03:07.5]} 7. Nxc6 {[%clk 0:02:51.5]} 7... Nxc6 {[%clk 0:03:08.3]} 8. e3 {[%clk
0:02:51]} 8... Qd7 {[%clk 0:03:06.9]} 9. O-O {[%clk 0:02:48.2]} 9... Rd8 {[%clk
0:03:03.2]} 10. Qa4 {[%clk 0:02:45.1]} 10... e5 {[%clk 0:03:01.8]} 11. dxe5
{[%clk 0:02:40.6]} 11... Nxe5 {[%clk 0:03:01.3]} 12. Qxa7 {[%clk 0:02:39.7]}
12... c6 {[%clk 0:03:00.2]} 13. Nc3 {[%clk 0:02:23.4]} 13... Nd3 {[%clk
0:02:57.2]} 14. Qa4 {[%clk 0:02:11]} 14... b5 {[%clk 0:02:41.5]} 15. Qa6 {[%clk
0:02:11.6]} 15... Nb4 {[%clk 0:02:32.2]} 16. Qa5 {[%clk 0:02:03.4]} 16... Bc5
{[%clk 0:02:18.9]} 17. Rd1 {[%clk 0:01:50.7]} 17... Nd3 {[%clk 0:02:10.2]} 18.
b3 {[%clk 0:01:40.8]} 18... Ng4 {[%clk 0:01:55]} 19. Qa6 {[%clk 0:01:33.5]}
19... Rc8 {[%clk 0:01:49]} 20. Ne4 {[%clk 0:01:33.1]} 20... Be7 {[%clk 0:01:24]}
21. bxc4 {[%clk 0:01:28.1]} 21... f5 {[%clk 0:01:23.1]} 22. Rxd3 {[%clk
0:00:53.3]} 22... Qxd3 {[%clk 0:01:15.6]} 23. Qxc8+ {[%clk 0:00:53.6]} 23... Kf7
{[%clk 0:01:16.9]} 24. Qxf5+ {[%clk 0:00:53.9]} 24... Nf6 {[%clk 0:01:17.6]} 25.
Ng5+ {[%clk 0:00:53.5]} 25... Ke8 {[%clk 0:01:18]} 26. Qxd3 {[%clk 0:00:54.1]}
1-0

[Event "*** Titled Tuesday Blitz"]
[Site "Chess.com"]
[Date "2018.04.03"]
[Round "9"]
[White "pulvettd"]
[Black "Patzel09"]
[Result "0-1"]
[WhiteElo "2436"]
[BlackElo "2571"]
[TimeControl "180+2"]
[EndTime "14:58:10 PDT"]
[Termination "Patzel09 won on time"]

1. d4 {[%clk 0:03:01.9]} 1... Nf6 {[%clk 0:02:58.9]} 2. c4 {[%clk 0:03:01.5]}
2... e6 {[%clk 0:02:58.8]} 3. Nf3 {[%clk 0:03:02.2]} 3... c5 {[%clk 0:02:59.5]}
4. d5 {[%clk 0:03:02.3]} 4... exd5 {[%clk 0:03:00.9]} 5. cxd5 {[%clk 0:03:03.7]}
5... d6 {[%clk 0:03:02]} 6. Nc3 {[%clk 0:03:03]} 6... g6 {[%clk 0:03:02.8]} 7.
Nd2 {[%clk 0:03:02.2]} 7... Bg7 {[%clk 0:03:01.8]} 8. e4 {[%clk 0:03:03.6]} 8...
O-O {[%clk 0:03:01]} 9. Be2 {[%clk 0:03:05.1]} 9... Nbd7 {[%clk 0:02:52]} 10.
O-O {[%clk 0:03:03.6]} 10... Re8 {[%clk 0:02:53.4]} 11. Re1 {[%clk 0:03:03]}
11... a6 {[%clk 0:02:52.7]} 12. a4 {[%clk 0:03:02.8]} 12... Ne5 {[%clk
0:02:49.5]} 13. Nf1 {[%clk 0:02:59.8]} 13... c4 {[%clk 0:02:34]} 14. h3 {[%clk
0:02:52.2]} 14... Bd7 {[%clk 0:02:28.3]} 15. a5 {[%clk 0:02:49.3]} 15... Bb5
{[%clk 0:02:23.9]} 16. Ng3 {[%clk 0:02:42.9]} 16... Nfd7 {[%clk 0:02:21.8]} 17.
f4 {[%clk 0:02:16.4]} 17... Nd3 {[%clk 0:02:22]} 18. Bxd3 {[%clk 0:02:17]} 18...
cxd3 {[%clk 0:02:23.1]} 19. Nxb5 {[%clk 0:02:17.3]} 19... axb5 {[%clk
0:02:23.5]} 20. Qxd3 {[%clk 0:02:18.3]} 20... Rxa5 {[%clk 0:02:23.4]} 21. Bd2
{[%clk 0:02:16.9]} 21... b4 {[%clk 0:02:19.8]} 22. Qc4 {[%clk 0:01:50.2]} 22...
Rxa1 {[%clk 0:02:18.1]} 23. Rxa1 {[%clk 0:01:48.8]} 23... Qb6+ {[%clk
0:02:19.9]} 24. Kh2 {[%clk 0:01:45.5]} 24... h5 {[%clk 0:02:12.3]} 25. e5 {[%clk
0:01:38.8]} 25... dxe5 {[%clk 0:02:05.7]} 26. f5 {[%clk 0:01:37.5]} 26... e4
{[%clk 0:02:04.7]} 27. Nxe4 {[%clk 0:01:25.6]} 27... Qd4 {[%clk 0:02:02.9]} 28.
Qxd4 {[%clk 0:01:14.6]} 28... Bxd4 {[%clk 0:02:04.8]} 29. Re1 {[%clk 0:01:09.1]}
29... gxf5 {[%clk 0:02:01.3]} 30. Ng3 {[%clk 0:00:47.7]} 30... Rxe1 {[%clk
0:01:59.6]} 31. Bxe1 {[%clk 0:00:49.6]} 31... b3 {[%clk 0:02:00.1]} 32. Nxf5
{[%clk 0:00:32.3]} 32... Bxb2 {[%clk 0:01:59.3]} 33. Ne7+ {[%clk 0:00:11.8]}
33... Kf8 {[%clk 0:01:58.9]} 34. Bb4 {[%clk 0:00:11.2]} 34... Be5+ {[%clk
0:01:57.8]} 35. g3 {[%clk 0:00:12.6]} 35... b2 {[%clk 0:01:49.8]} 36. Ng6+
{[%clk 0:00:10.2]} 36... Kg7 {[%clk 0:01:50.4]} 37. Nxe5 {[%clk 0:00:07.1]}
37... Nxe5 {[%clk 0:01:51.2]} 38. Bc3 {[%clk 0:00:06.7]} 38... b1=Q {[%clk
0:01:52.5]} 39. Bxe5+ {[%clk 0:00:07.9]} 39... f6 {[%clk 0:01:54]} 40. Bf4
{[%clk 0:00:06.9]} 40... Qc2+ {[%clk 0:01:54.9]} 41. Kg1 {[%clk 0:00:07.7]}
41... b5 {[%clk 0:01:56.4]} 42. h4 {[%clk 0:00:09.2]} 42... b4 {[%clk
0:01:57.6]} 43. d6 {[%clk 0:00:08.8]} 43... b3 {[%clk 0:01:58.7]} 44. d7 {[%clk
0:00:10.3]} 44... b2 {[%clk 0:01:58.8]} 45. d8=Q {[%clk 0:00:12.2]} 45... b1=Q+
{[%clk 0:01:59.9]} 0-1

[Event "*** Titled Tuesday Blitz"]
[Site "Chess.com"]
[Date "2018.04.03"]
[Round "9"]
[White "simplerXiao"]
[Black "julinha97"]
[Result "0-1"]
[WhiteElo "2364"]
[BlackElo "2254"]
[TimeControl "180+2"]
[EndTime "14:58:13 PDT"]
[Termination "julinha97 won by resignation"]

1. e4 {[%clk 0:03:01.7]} 1... c5 {[%clk 0:03:00.7]} 2. Nf3 {[%clk 0:02:57]} 2...
d6 {[%clk 0:03:01.8]} 3. d4 {[%clk 0:02:55]} 3... cxd4 {[%clk 0:03:03.3]} 4.
Nxd4 {[%clk 0:02:55.2]} 4... Nf6 {[%clk 0:03:04.4]} 5. Nc3 {[%clk 0:02:54.4]}
5... g6 {[%clk 0:03:05.6]} 6. Be3 {[%clk 0:02:49.4]} 6... Bg7 {[%clk 0:03:06.6]}
7. f3 {[%clk 0:02:45]} 7... O-O {[%clk 0:03:07]} 8. Qd2 {[%clk 0:02:44.8]} 8...
Nc6 {[%clk 0:03:07.3]} 9. O-O-O {[%clk 0:02:43.8]} 9... d5 {[%clk 0:03:08.2]}
10. exd5 {[%clk 0:02:41.4]} 10... Nxd5 {[%clk 0:03:08.5]} 11. Nxc6 {[%clk
0:02:41.3]} 11... bxc6 {[%clk 0:03:08.6]} 12. Bd4 {[%clk 0:02:41.6]} 12... Bxd4
{[%clk 0:02:49.4]} 13. Qxd4 {[%clk 0:02:38.5]} 13... Qb6 {[%clk 0:02:28.7]} 14.
Nxd5 {[%clk 0:02:34.1]} 14... cxd5 {[%clk 0:02:19.7]} 15. Qxb6 {[%clk
0:02:32.1]} 15... axb6 {[%clk 0:02:19.3]} 16. a3 {[%clk 0:02:32.7]} 16... Rd8
{[%clk 0:02:05.3]} 17. Bb5 {[%clk 0:02:30.7]} 17... Ra5 {[%clk 0:02:00.7]} 18.
a4 {[%clk 0:02:16.6]} 18... e6 {[%clk 0:01:54.2]} 19. b4 {[%clk 0:02:13.9]}
19... Ra7 {[%clk 0:01:39.2]} 20. Kb2 {[%clk 0:02:07.9]} 20... Bd7 {[%clk
0:01:39.6]} 21. c4 {[%clk 0:01:59.8]} 21... Bxb5 {[%clk 0:01:38]} 22. axb5
{[%clk 0:01:59.5]} 22... Rda8 {[%clk 0:01:36.3]} 23. Ra1 {[%clk 0:01:52.7]}
23... dxc4 {[%clk 0:01:34.6]} 24. Rxa7 {[%clk 0:01:50.1]} 24... Rxa7 {[%clk
0:01:35.9]} 25. Rc1 {[%clk 0:01:49.1]} 25... Rc7 {[%clk 0:01:34.7]} 26. Rd1
{[%clk 0:01:47.1]} 26... c3+ {[%clk 0:01:25]} 27. Kc2 {[%clk 0:01:46.4]} 27...
Rc4 {[%clk 0:01:26]} 28. Kb3 {[%clk 0:01:46.7]} 28... Rc7 {[%clk 0:01:20.7]} 29.
Rc1 {[%clk 0:01:46.6]} 29... Kf8 {[%clk 0:01:08.9]} 30. Rxc3 {[%clk 0:01:45.8]}
30... Rxc3+ {[%clk 0:01:07.1]} 31. Kxc3 {[%clk 0:01:47.4]} 31... Ke7 {[%clk
0:01:08.6]} 32. Kd4 {[%clk 0:01:45.1]} 32... Kd6 {[%clk 0:01:09.6]} 33. f4
{[%clk 0:01:39.3]} 33... f6 {[%clk 0:01:09.3]} 34. Ke4 {[%clk 0:01:29.7]} 34...
h5 {[%clk 0:01:02.5]} 35. g3 {[%clk 0:01:27.1]} 35... e5 {[%clk 0:01:02.2]} 36.
fxe5+ {[%clk 0:00:58.8]} 36... fxe5 {[%clk 0:01:02.1]} 37. h3 {[%clk 0:00:59.5]}
37... Ke6 {[%clk 0:01:00.4]} 38. g4 {[%clk 0:00:58.7]} 38... hxg4 {[%clk
0:01:00.7]} 39. hxg4 {[%clk 0:00:59]} 39... Kd6 {[%clk 0:01:01.4]} 40. Kd3
{[%clk 0:00:55.8]} 40... Kd5 {[%clk 0:01:01.5]} 41. Ke3 {[%clk 0:00:56.1]} 41...
g5 {[%clk 0:01:01.6]} 42. Kd3 {[%clk 0:00:55.7]} 42... e4+ {[%clk 0:01:02.6]}
43. Ke3 {[%clk 0:00:56.4]} 43... Ke5 {[%clk 0:01:03.9]} 0-1

[Event "*** Titled Tuesday Blitz"]
[Site "Chess.com"]
[Date "2018.04.03"]
[Round "9"]
[White "Danny_The_Donkey"]
[Black "djano"]
[Result "1-0"]
[WhiteElo "2653"]
[BlackElo "2454"]
[TimeControl "180+2"]
[EndTime "14:58:17 PDT"]
[Termination "Danny_The_Donkey won by resignation"]

1. e4 {[%clk 0:02:59.1]} 1... c5 {[%clk 0:02:57.7]} 2. Nf3 {[%clk 0:02:59.6]}
2... Nc6 {[%clk 0:02:57.9]} 3. d4 {[%clk 0:03:00.7]} 3... cxd4 {[%clk 0:02:59]}
4. Nxd4 {[%clk 0:03:02.6]} 4... g6 {[%clk 0:03:00.4]} 5. c4 {[%clk 0:03:03.4]}
5... Nf6 {[%clk 0:02:59.1]} 6. Nc3 {[%clk 0:03:03.9]} 6... Nxd4 {[%clk
0:03:00.2]} 7. Qxd4 {[%clk 0:03:04.5]} 7... d6 {[%clk 0:03:01.8]} 8. f3 {[%clk
0:03:03.5]} 8... Bg7 {[%clk 0:03:02.9]} 9. Be3 {[%clk 0:03:04.7]} 9... O-O
{[%clk 0:03:04.2]} 10. Qd2 {[%clk 0:03:05.8]} 10... a5 {[%clk 0:03:02.6]} 11.
Be2 {[%clk 0:03:06.9]} 11... a4 {[%clk 0:03:04]} 12. O-O {[%clk 0:03:07.8]}
12... Qa5 {[%clk 0:03:04.3]} 13. Rfd1 {[%clk 0:03:08.1]} 13... Be6 {[%clk
0:03:03.8]} 14. Rac1 {[%clk 0:02:55.8]} 14... Rfc8 {[%clk 0:03:02.6]} 15. Nb5
{[%clk 0:02:38.3]} 15... Qxd2 {[%clk 0:03:00.4]} 16. Rxd2 {[%clk 0:02:38.8]}
16... Nd7 {[%clk 0:02:53.2]} 17. Rdc2 {[%clk 0:02:39.2]} 17... Ne5 {[%clk
0:02:46.6]} 18. h3 {[%clk 0:02:35]} 18... Bd7 {[%clk 0:02:35.2]} 19. Kf2 {[%clk
0:02:04.2]} 19... Kf8 {[%clk 0:02:28.7]} 20. Nd4 {[%clk 0:01:47.4]} 20... Nc6
{[%clk 0:02:28.4]} 21. Nxc6 {[%clk 0:01:47.7]} 21... Rxc6 {[%clk 0:02:22.2]} 22.
c5 {[%clk 0:01:48.7]} 22... dxc5 {[%clk 0:02:20.8]} 23. Bb5 {[%clk 0:01:46.2]}
23... Rd6 {[%clk 0:02:12.8]} 24. Bxd7 {[%clk 0:01:32.1]} 24... Rxd7 {[%clk
0:02:14.7]} 25. Rxc5 {[%clk 0:01:33.3]} 25... Bxb2 {[%clk 0:02:01]} 26. Bh6+
{[%clk 0:01:26.6]} 26... Ke8 {[%clk 0:01:54.9]} 27. Rc8+ {[%clk 0:01:23]} 27...
Rd8 {[%clk 0:01:50.6]} 28. Rxa8 {[%clk 0:01:05.8]} 28... Rxa8 {[%clk 0:01:52.5]}
29. Rc2 {[%clk 0:01:06.2]} 29... Bd4+ {[%clk 0:01:48]} 30. Be3 {[%clk
0:01:03.2]} 30... Bxe3+ {[%clk 0:01:47.7]} 31. Kxe3 {[%clk 0:01:05.1]} 31... Kd7
{[%clk 0:01:47.3]} 32. Rd2+ {[%clk 0:01:04.4]} 32... Kc7 {[%clk 0:01:47.2]} 33.
Rc2+ {[%clk 0:01:04.1]} 33... Kb6 {[%clk 0:01:48.3]} 34. Rc4 {[%clk 0:01:03.9]}
34... Kb5 {[%clk 0:01:42.2]} 35. Rc7 {[%clk 0:01:04.2]} 35... Kb4 {[%clk
0:01:38.2]} 36. Rxe7 {[%clk 0:01:03]} 36... b5 {[%clk 0:01:36.2]} 37. Rb7 {[%clk
0:01:00.8]} 37... Rc8 {[%clk 0:01:32.5]} 38. e5 {[%clk 0:00:57.6]} 38... Rc2
{[%clk 0:01:31.5]} 39. Rxf7 {[%clk 0:00:56.2]} 39... Rxa2 {[%clk 0:01:30.5]} 40.
e6 {[%clk 0:00:55.8]} 40... Ra1 {[%clk 0:01:30.3]} 41. Kd2 {[%clk 0:00:56.7]}
41... Ra2+ {[%clk 0:01:30.9]} 42. Kd3 {[%clk 0:00:54.4]} 42... Ra1 {[%clk
0:01:31.1]} 43. Rf4+ {[%clk 0:00:53.6]} 43... Kc5 {[%clk 0:01:31]} 44. e7 {[%clk
0:00:54.1]} 1-0

[Event "*** Titled Tuesday Blitz"]
[Site "Chess.com"]
[Date "2018.04.03"]
[Round "9"]
[White "EmeseBalogh"]
[Black "PowerThinking2650"]
[Result "0-1"]
[WhiteElo "1957"]
[BlackElo "2218"]
[TimeControl "180+2"]
[EndTime "14:58:24 PDT"]
[Termination "PowerThinking2650 won by resignation"]

1. e4 {[%clk 0:02:48.1]} 1... e5 {[%clk 0:02:59.8]} 2. Nf3 {[%clk 0:02:48.7]}
2... Nc6 {[%clk 0:03:00.7]} 3. d4 {[%clk 0:02:50.1]} 3... exd4 {[%clk
0:03:01.3]} 4. Bc4 {[%clk 0:02:51.3]} 4... Nf6 {[%clk 0:03:01.9]} 5. e5 {[%clk
0:02:52.3]} 5... d5 {[%clk 0:03:02.2]} 6. Bb5 {[%clk 0:02:53]} 6... Ne4 {[%clk
0:03:03.5]} 7. Nxd4 {[%clk 0:02:51.4]} 7... Bc5 {[%clk 0:03:03.3]} 8. Be3 {[%clk
0:02:52.6]} 8... Bd7 {[%clk 0:03:01.6]} 9. Bxc6 {[%clk 0:02:53.7]} 9... bxc6
{[%clk 0:03:02]} 10. O-O {[%clk 0:02:53.9]} 10... Qe7 {[%clk 0:03:01.1]} 11. f3
{[%clk 0:02:55]} 11... Nd6 {[%clk 0:03:01.2]} 12. f4 {[%clk 0:02:56.1]} 12...
Bxd4 {[%clk 0:02:50]} 13. Bxd4 {[%clk 0:02:56.8]} 13... Nf5 {[%clk 0:02:50.3]}
14. Bf2 {[%clk 0:02:57.4]} 14... h5 {[%clk 0:02:46.3]} 15. c4 {[%clk 0:02:58]}
15... dxc4 {[%clk 0:02:40]} 16. Nc3 {[%clk 0:02:58.5]} 16... Be6 {[%clk
0:02:31.5]} 17. Ne4 {[%clk 0:02:58.7]} 17... Bd5 {[%clk 0:02:29.7]} 18. Bc5
{[%clk 0:02:53.5]} 18... Qe6 {[%clk 0:02:26.3]} 19. Ng5 {[%clk 0:02:52.7]} 19...
Qg6 {[%clk 0:02:26.1]} 20. Qe2 {[%clk 0:02:40.2]} 20... h4 {[%clk 0:02:18.9]}
21. Rad1 {[%clk 0:02:36.3]} 21... O-O-O {[%clk 0:02:02]} 22. b3 {[%clk
0:02:29.4]} 22... cxb3 {[%clk 0:01:51.8]} 23. Qa6+ {[%clk 0:02:27.3]} 23... Kd7
{[%clk 0:01:52.8]} 24. axb3 {[%clk 0:01:56.1]} 24... Rh5 {[%clk 0:01:52.5]} 25.
b4 {[%clk 0:01:39.4]} 25... Rxg5 {[%clk 0:01:50.4]} 26. fxg5 {[%clk 0:01:41.3]}
26... Qxg5 {[%clk 0:01:51.5]} 27. Rxd5+ {[%clk 0:01:34.7]} 27... cxd5 {[%clk
0:01:51.3]} 28. Qb5+ {[%clk 0:01:35.8]} 28... Kc8 {[%clk 0:01:16.6]} 29. Bxa7
{[%clk 0:01:31.7]} 29... h3 {[%clk 0:01:07.1]} 30. Qa6+ {[%clk 0:01:28.2]} 30...
Kd7 {[%clk 0:01:07.5]} 31. Qb5+ {[%clk 0:01:22.5]} 31... Ke6 {[%clk 0:01:07.1]}
32. Qc6+ {[%clk 0:01:10.7]} 32... Nd6 {[%clk 0:00:51]} 33. g3 {[%clk 0:00:57.3]}
33... Qxe5 {[%clk 0:00:51.5]} 34. Bc5 {[%clk 0:00:48]} 34... Qe4 {[%clk
0:00:47.1]} 35. Kf2 {[%clk 0:00:40.9]} 35... Qg2+ {[%clk 0:00:40]} 36. Ke3
{[%clk 0:00:41.6]} 36... d4+ {[%clk 0:00:38.2]} 0-1

[Event "*** Titled Tuesday Blitz"]
[Site "Chess.com"]
[Date "2018.04.03"]
[Round "9"]
[White "dianosky"]
[Black "BartoszSocko"]
[Result "0-1"]
[WhiteElo "2304"]
[BlackElo "2568"]
[TimeControl "180+2"]
[EndTime "14:58:55 PDT"]
[Termination "BartoszSocko won by resignation"]

1. d4 {[%clk 0:03:01.9]} 1... e6 {[%clk 0:03:01.9]} 2. c4 {[%clk 0:03:02]} 2...
Nf6 {[%clk 0:03:02.2]} 3. Nf3 {[%clk 0:03:01.6]} 3... Bb4+ {[%clk 0:03:02.7]} 4.
Bd2 {[%clk 0:03:01.6]} 4... c5 {[%clk 0:03:02.1]} 5. dxc5 {[%clk 0:03:00.4]}
5... Bxc5 {[%clk 0:02:58.9]} 6. Nc3 {[%clk 0:02:58.9]} 6... O-O {[%clk
0:02:55.6]} 7. e3 {[%clk 0:02:54.8]} 7... d5 {[%clk 0:02:52.5]} 8. a3 {[%clk
0:02:51.4]} 8... Nc6 {[%clk 0:02:38]} 9. b4 {[%clk 0:02:49.8]} 9... Bb6 {[%clk
0:02:39.1]} 10. c5 {[%clk 0:02:40.5]} 10... Bc7 {[%clk 0:02:40.2]} 11. Bd3
{[%clk 0:02:33.6]} 11... e5 {[%clk 0:02:40.9]} 12. Bb5 {[%clk 0:02:33.2]} 12...
e4 {[%clk 0:02:35.5]} 13. Nd4 {[%clk 0:02:27.6]} 13... Bg4 {[%clk 0:02:30.7]}
14. Qb3 {[%clk 0:02:23.2]} 14... Ne5 {[%clk 0:02:25.2]} 15. h3 {[%clk
0:02:22.3]} 15... Bh5 {[%clk 0:02:18.5]} 16. g4 {[%clk 0:02:19.5]} 16... Bg6
{[%clk 0:02:19.6]} 17. g5 {[%clk 0:02:18.2]} 17... Nh5 {[%clk 0:02:03]} 18. Nxd5
{[%clk 0:01:49.6]} 18... a5 {[%clk 0:02:03.9]} 19. Bc3 {[%clk 0:01:30.8]} 19...
axb4 {[%clk 0:02:01.2]} 20. axb4 {[%clk 0:01:30.7]} 20... Rxa1+ {[%clk
0:01:59.6]} 21. Bxa1 {[%clk 0:01:29.9]} 21... Nd3+ {[%clk 0:01:55.7]} 22. Bxd3
{[%clk 0:01:14.3]} 22... exd3 {[%clk 0:01:57.6]} 23. Nb5 {[%clk 0:00:59.9]}
23... Bb8 {[%clk 0:01:47.6]} 24. Rg1 {[%clk 0:00:53.4]} 24... Re8 {[%clk
0:01:38.6]} 25. Kd2 {[%clk 0:00:48.5]} 25... Qd7 {[%clk 0:01:39.8]} 26. Qc4
{[%clk 0:00:32.5]} 26... Qxh3 {[%clk 0:01:36.8]} 27. Nd6 {[%clk 0:00:19.3]}
27... Qh2 {[%clk 0:01:10.9]} 28. Nxe8 {[%clk 0:00:14.1]} 28... Qxf2+ {[%clk
0:01:11.5]} 29. Kc3 {[%clk 0:00:11.9]} 29... Qxg1 {[%clk 0:01:12.6]} 30. Ne7+
{[%clk 0:00:12]} 30... Kf8 {[%clk 0:01:09.7]} 31. Nxg6+ {[%clk 0:00:13.5]} 31...
hxg6 {[%clk 0:01:11.6]} 32. Nd6 {[%clk 0:00:13.9]} 32... Qxa1+ {[%clk
0:01:11.9]} 33. Kxd3 {[%clk 0:00:12.4]} 33... Qf1+ {[%clk 0:01:12.6]} 34. Kc3
{[%clk 0:00:12.8]} 34... Qxc4+ {[%clk 0:01:12.7]} 35. Kxc4 {[%clk 0:00:11.6]}
35... Bxd6 {[%clk 0:01:12.4]} 36. cxd6 {[%clk 0:00:12.4]} 36... Ke8 {[%clk
0:01:13.3]} 37. Kc5 {[%clk 0:00:12.9]} 37... Kd7 {[%clk 0:01:14.5]} 38. Kb6
{[%clk 0:00:14.2]} 38... Ng3 {[%clk 0:01:14.9]} 39. Kxb7 {[%clk 0:00:14.6]}
39... Nf5 {[%clk 0:01:15.7]} 40. b5 {[%clk 0:00:14.4]} 40... Nxe3 {[%clk
0:01:16.1]} 41. b6 {[%clk 0:00:14.7]} 41... Nc4 {[%clk 0:01:17.2]} 42. Ka7
{[%clk 0:00:15.1]} 42... Nxb6 {[%clk 0:01:18.3]} 43. Kxb6 {[%clk 0:00:15.7]}
43... Kxd6 {[%clk 0:01:20.2]} 0-1